[Event "*** Titled Tuesday Blitz"]
[Site "Chess.com"]
[Date "2019.08.06"]
[Round "3"]
[White "olksuna"]
[Black "dcremisi"]
[Result "1-0"]
[WhiteElo "2558"]
[BlackElo "2370"]
[TimeControl "180+2"]
[EndTime "13:40:37 PDT"]
[Termination "olksuna won by resignation"]

1. c4 {[%clk 0:03:00.7]} 1... g6 {[%clk 0:02:58.2]} 2. Nc3 {[%clk 0:03:00.2]}
2... Bg7 {[%clk 0:02:59.2]} 3. g3 {[%clk 0:02:52.6]} 3... Nf6 {[%clk 0:02:56.2]}
4. Bg2 {[%clk 0:02:54.5]} 4... c5 {[%clk 0:02:56.5]} 5. Bf1 {[%clk 0:02:56.4]}
5... O-O {[%clk 0:02:54.6]} 6. Bg2 {[%clk 0:02:58.3]} 6... Nc6 {[%clk
0:02:55.3]} 7. Nf3 {[%clk 0:03:00.2]} 7... b6 {[%clk 0:02:55]} 8. O-O {[%clk
0:03:02.1]} 8... Bb7 {[%clk 0:02:56.4]} 9. d3 {[%clk 0:02:50.8]} 9... e6 {[%clk
0:02:55.6]} 10. Bg5 {[%clk 0:02:46.2]} 10... h6 {[%clk 0:02:54.6]} 11. Bxf6
{[%clk 0:02:47.2]} 11... Bxf6 {[%clk 0:02:54.6]} 12. Qd2 {[%clk 0:02:48.1]}
12... Bg7 {[%clk 0:02:51.1]} 13. e4 {[%clk 0:02:27.8]} 13... Qe7 {[%clk
0:02:43]} 14. Rae1 {[%clk 0:02:25.3]} 14... Rad8 {[%clk 0:02:43.4]} 15. h3
{[%clk 0:02:21.7]} 15... Rfe8 {[%clk 0:02:44]} 16. Kh2 {[%clk 0:02:22.5]} 16...
Nd4 {[%clk 0:02:44.6]} 17. Nxd4 {[%clk 0:02:22.7]} 17... Bxd4 {[%clk 0:02:46.5]}
18. Qxh6 {[%clk 0:02:21.4]} 18... a6 {[%clk 0:02:37]} 19. e5 {[%clk 0:02:08]}
19... Bxg2 {[%clk 0:02:37.8]} 20. Kxg2 {[%clk 0:02:09.5]} 20... Bxc3 {[%clk
0:02:39.3]} 21. bxc3 {[%clk 0:02:10.2]} 21... d6 {[%clk 0:02:40.4]} 22. Re4
{[%clk 0:01:52.8]} 22... dxe5 {[%clk 0:02:36.1]} 23. Rb1 {[%clk 0:01:44.7]}
23... Qf8 {[%clk 0:02:30.3]} 24. Qe3 {[%clk 0:01:44.1]} 24... Qd6 {[%clk
0:02:27.8]} 25. Rxe5 {[%clk 0:01:43.4]} 25... Qxd3 {[%clk 0:02:28.5]} 26. Qxd3
{[%clk 0:01:41]} 26... Rxd3 {[%clk 0:02:30.4]} 27. Rxb6 {[%clk 0:01:42]} 27...
Rxc3 {[%clk 0:02:31.1]} 28. Rxc5 {[%clk 0:01:43.5]} 28... Ra3 {[%clk 0:02:30.7]}
29. Rb2 {[%clk 0:01:43.8]} 29... Rd8 {[%clk 0:02:29.4]} 30. Rc7 {[%clk
0:01:45.1]} 30... Rad3 {[%clk 0:02:28.6]} 31. Ra7 {[%clk 0:01:43.5]} 31... Rc3
{[%clk 0:02:26.5]} 32. Rbb7 {[%clk 0:01:28.4]} 32... Rf8 {[%clk 0:02:27.1]} 33.
Rxa6 {[%clk 0:01:29.6]} 33... Rxc4 {[%clk 0:02:28.1]} 34. a4 {[%clk 0:01:29.4]}
34... Rc2 {[%clk 0:02:23.7]} 35. a5 {[%clk 0:01:26.3]} 35... Ra2 {[%clk
0:02:23]} 36. Raa7 {[%clk 0:01:27.4]} 36... Kg7 {[%clk 0:02:23.3]} 37. a6 {[%clk
0:01:26.2]} 37... g5 {[%clk 0:02:23.9]} 38. Rb6 {[%clk 0:01:24.6]} 38... Rc8
{[%clk 0:02:19.5]} 39. Rbb7 {[%clk 0:01:18.3]} 39... Rf8 {[%clk 0:02:16.5]} 40.
Rc7 {[%clk 0:01:14.1]} 40... Kg6 {[%clk 0:02:11.7]} 41. g4 {[%clk 0:01:02.3]}
41... f5 {[%clk 0:02:01.7]} 42. Rg7+ {[%clk 0:01:00.4]} 42... Kf6 {[%clk
0:02:02.7]} 43. gxf5 {[%clk 0:00:54.4]} 43... exf5 {[%clk 0:02:03.3]} 44. Rgc7
{[%clk 0:00:50.9]} 44... g4 {[%clk 0:01:53.3]} 45. Rc6+ {[%clk 0:00:47]} 45...
Kg5 {[%clk 0:01:48.2]} 46. Rg7+ {[%clk 0:00:22.9]} 46... Kf4 {[%clk 0:01:48.1]}
47. h4 {[%clk 0:00:17.5]} 47... Ra8 {[%clk 0:01:42.9]} 48. Rc4+ {[%clk
0:00:17.6]} 48... Ke5 {[%clk 0:01:43.8]} 49. Rc5+ {[%clk 0:00:19]} 49... Kf6
{[%clk 0:01:40]} 50. Rg5 {[%clk 0:00:20.2]} 50... R8xa6 {[%clk 0:01:40]} 51.
Rcxf5+ {[%clk 0:00:21.4]} 51... Ke6 {[%clk 0:01:40.5]} 52. Rf4 {[%clk
0:00:22.4]} 52... R6a4 {[%clk 0:01:37.4]} 53. Rgxg4 {[%clk 0:00:22.6]} 53...
Rxf4 {[%clk 0:01:37.2]} 54. Rxf4 {[%clk 0:00:24.5]} 54... Ke5 {[%clk 0:01:39.1]}
55. Rf8 {[%clk 0:00:24.3]} 55... Ra1 {[%clk 0:01:38.8]} 56. h5 {[%clk
0:00:23.6]} 56... Ra4 {[%clk 0:01:35.6]} 57. Kg3 {[%clk 0:00:24]} 57... Ra1
{[%clk 0:01:35.3]} 58. Kg2 {[%clk 0:00:18.8]} 58... Ra4 {[%clk 0:01:35.1]} 59.
Rf3 {[%clk 0:00:18.9]} 59... Ra6 {[%clk 0:01:28.5]} 60. Kg3 {[%clk 0:00:19.6]}
60... Ra1 {[%clk 0:01:28]} 61. Kg4 {[%clk 0:00:20.8]} 61... Ke6 {[%clk
0:01:24.2]} 62. h6 {[%clk 0:00:21.5]} 62... Rh1 {[%clk 0:01:07.8]} 63. Rh3
{[%clk 0:00:21.3]} 63... Rg1+ {[%clk 0:01:08.8]} 64. Kf4 {[%clk 0:00:22.8]}
64... Rg8 {[%clk 0:01:08.4]} 65. h7 {[%clk 0:00:24.1]} 65... Rh8 {[%clk
0:01:09.7]} 66. Rh6+ {[%clk 0:00:25.3]} 66... Kf7 {[%clk 0:01:10.8]} 67. Kf5
{[%clk 0:00:26.6]} 67... Kg7 {[%clk 0:01:11.9]} 68. Rh2 {[%clk 0:00:28.1]} 68...
Rf8+ {[%clk 0:01:12.2]} 69. Kg5 {[%clk 0:00:29.2]} 69... Kh8 {[%clk 0:01:11.3]}
70. f4 {[%clk 0:00:29.7]} 70... Rf7 {[%clk 0:01:09.7]} 71. f5 {[%clk 0:00:30.6]}
71... Rg7+ {[%clk 0:01:07.3]} 72. Kf6 {[%clk 0:00:30.4]} 72... Rf7+ {[%clk
0:01:01.3]} 73. Ke6 {[%clk 0:00:27.9]} 73... Ra7 {[%clk 0:00:57.7]} 74. Rd2
{[%clk 0:00:29.1]} 74... Ra6+ {[%clk 0:00:56.6]} 75. Rd6 {[%clk 0:00:30.2]}
75... Ra1 {[%clk 0:00:51.9]} 76. f6 {[%clk 0:00:16.9]} 76... Re1+ {[%clk
0:00:39.3]} 77. Kf7 {[%clk 0:00:17.3]} 77... Ra1 {[%clk 0:00:27.2]} 78. Rd4
{[%clk 0:00:15.5]} 78... Ra2 {[%clk 0:00:19.9]} 79. Re4 {[%clk 0:00:06.7]} 79...
Ra3 {[%clk 0:00:16.7]} 80. Kf8 {[%clk 0:00:07.1]} 80... Ra6 {[%clk 0:00:15.1]}
81. f7 {[%clk 0:00:06.6]} 81... Kxh7 {[%clk 0:00:15]} 82. Rh4+ {[%clk
0:00:02.9]} 82... Kg6 {[%clk 0:00:16.1]} 83. Rg4+ {[%clk 0:00:04]} 83... Kf5
{[%clk 0:00:16.9]} 84. Rg2 {[%clk 0:00:04.9]} 84... Kf6 {[%clk 0:00:17.6]} 85.
Rf2+ {[%clk 0:00:05.7]} 85... Kg6 {[%clk 0:00:18.8]} 86. Rg2+ {[%clk 0:00:07.1]}
86... Kf6 {[%clk 0:00:19.2]} 87. Kg8 {[%clk 0:00:07.9]} 87... Ra2 {[%clk
0:00:16.9]} 88. Rxa2 {[%clk 0:00:07]} 1-0

[Event "*** Titled Tuesday Blitz"]
[Site "Chess.com"]
[Date "2019.08.06"]
[Round "3"]
[White "Slovak_fighter2000"]
[Black "Nakachuk"]
[Result "1-0"]
[WhiteElo "2476"]
[BlackElo "2667"]
[TimeControl "180+2"]
[EndTime "13:41:03 PDT"]
[Termination "Slovak_fighter2000 won by resignation"]

1. d4 {[%clk 0:03:01.8]} 1... Nf6 {[%clk 0:02:59.7]} 2. c4 {[%clk 0:03:02.5]}
2... g6 {[%clk 0:02:59.8]} 3. Nc3 {[%clk 0:03:03]} 3... Bg7 {[%clk 0:03:00.5]}
4. e4 {[%clk 0:03:03.9]} 4... d6 {[%clk 0:03:01.9]} 5. h3 {[%clk 0:03:03]} 5...
O-O {[%clk 0:03:02.9]} 6. Be3 {[%clk 0:03:04.1]} 6... c5 {[%clk 0:02:45.4]} 7.
Nf3 {[%clk 0:03:04.5]} 7... Qa5 {[%clk 0:02:46.7]} 8. Bd3 {[%clk 0:03:03.1]}
8... Nc6 {[%clk 0:02:46.3]} 9. O-O {[%clk 0:03:03.2]} 9... Nd7 {[%clk 0:02:46]}
10. d5 {[%clk 0:03:01.1]} 10... Nd4 {[%clk 0:02:45.6]} 11. Bxd4 {[%clk
0:02:48.2]} 11... cxd4 {[%clk 0:02:47.5]} 12. Nb5 {[%clk 0:02:44.9]} 12... Qb6
{[%clk 0:02:46.3]} 13. b3 {[%clk 0:02:11.8]} 13... a6 {[%clk 0:02:41.5]} 14. Na3
{[%clk 0:02:12.8]} 14... Nc5 {[%clk 0:02:41.1]} 15. Nc2 {[%clk 0:02:12.9]} 15...
e5 {[%clk 0:02:37.5]} 16. dxe6 {[%clk 0:02:11.9]} 16... Nxe6 {[%clk 0:02:38.2]}
17. Qd2 {[%clk 0:02:07.8]} 17... Bd7 {[%clk 0:02:35.5]} 18. Nb4 {[%clk
0:02:06.3]} 18... Bc6 {[%clk 0:02:31.7]} 19. Nd5 {[%clk 0:02:05.6]} 19... Bxd5
{[%clk 0:02:32.7]} 20. exd5 {[%clk 0:02:06]} 20... Nc5 {[%clk 0:02:33.2]} 21.
Rfe1 {[%clk 0:02:05.7]} 21... a5 {[%clk 0:02:33.8]} 22. Rab1 {[%clk 0:02:03.3]}
22... Rfe8 {[%clk 0:02:32]} 23. Bc2 {[%clk 0:01:57.7]} 23... Qb4 {[%clk
0:02:30]} 24. Qxb4 {[%clk 0:01:31.5]} 24... axb4 {[%clk 0:02:31.8]} 25. Rxe8+
{[%clk 0:01:33.4]} 25... Rxe8 {[%clk 0:02:31.4]} 26. Rd1 {[%clk 0:01:31.5]}
26... Ra8 {[%clk 0:02:15.9]} 27. Bb1 {[%clk 0:01:30.6]} 27... d3 {[%clk
0:02:10.2]} 28. Ne1 {[%clk 0:01:08.2]} 28... d2 {[%clk 0:01:58.1]} 29. Rxd2
{[%clk 0:01:04]} 29... Bc3 {[%clk 0:01:59.3]} 30. Re2 {[%clk 0:01:05.2]} 30...
Bxe1 {[%clk 0:01:59]} 31. Rxe1 {[%clk 0:01:07.1]} 31... Kf8 {[%clk 0:02:00.4]}
32. f3 {[%clk 0:01:03.5]} 32... f5 {[%clk 0:01:52.4]} 33. Kf2 {[%clk 0:01:02.4]}
33... f4 {[%clk 0:01:52.9]} 34. h4 {[%clk 0:00:59]} 34... Kf7 {[%clk 0:01:52.2]}
35. h5 {[%clk 0:00:38.3]} 35... Kf6 {[%clk 0:01:50.8]} 36. hxg6 {[%clk
0:00:37.6]} 36... hxg6 {[%clk 0:01:52.7]} 37. Rh1 {[%clk 0:00:38.1]} 37... Kg7
{[%clk 0:01:43.7]} 38. Rh4 {[%clk 0:00:34.7]} 38... Rf8 {[%clk 0:01:44.4]} 39.
Rh1 {[%clk 0:00:32.3]} 39... Re8 {[%clk 0:01:43.5]} 40. Re1 {[%clk 0:00:32.4]}
40... Rh8 {[%clk 0:01:38.6]} 41. Re7+ {[%clk 0:00:32.5]} 41... Kf6 {[%clk
0:01:40]} 42. Re1 {[%clk 0:00:30.5]} 42... g5 {[%clk 0:01:40.6]} 43. Ke2 {[%clk
0:00:28.8]} 43... Nd7 {[%clk 0:01:36]} 44. Kd2 {[%clk 0:00:26.7]} 44... Ne5
{[%clk 0:01:36.5]} 45. Re2 {[%clk 0:00:22.8]} 45... Rh1 {[%clk 0:01:37.2]} 46.
Re1 {[%clk 0:00:24.3]} 46... Rh2 {[%clk 0:01:36.9]} 47. Re2 {[%clk 0:00:25.8]}
47... b6 {[%clk 0:01:19.8]} 48. Bc2 {[%clk 0:00:26.9]} 48... Rh1 {[%clk
0:01:20.6]} 49. Re1 {[%clk 0:00:27.4]} 49... Rh8 {[%clk 0:01:19]} 50. Re2 {[%clk
0:00:28.2]} 50... Ra8 {[%clk 0:01:18.5]} 51. Bb1 {[%clk 0:00:29.7]} 51... Rh8
{[%clk 0:01:18.7]} 52. Re1 {[%clk 0:00:29.1]} 52... g4 {[%clk 0:01:18.1]} 53.
fxg4 {[%clk 0:00:28.9]} 53... Kg5 {[%clk 0:01:19.5]} 54. Bf5 {[%clk 0:00:28.9]}
54... Rh2 {[%clk 0:01:17.8]} 55. Re2 {[%clk 0:00:29.1]} 55... Rh1 {[%clk
0:01:18.6]} 56. Re1 {[%clk 0:00:28.1]} 56... Rh8 {[%clk 0:01:19.9]} 57. Re2
{[%clk 0:00:27]} 57... Ra8 {[%clk 0:01:20.5]} 58. Ke1 {[%clk 0:00:27.4]} 58...
Rh8 {[%clk 0:01:19.6]} 59. Kd2 {[%clk 0:00:28.6]} 59... Rh2 {[%clk 0:01:19.8]}
60. Ke1 {[%clk 0:00:26.5]} 60... Rh1+ {[%clk 0:01:18.1]} 61. Kf2 {[%clk
0:00:26.4]} 61... Ra1 {[%clk 0:01:19.2]} 62. Rd2 {[%clk 0:00:22.1]} 62... Nf7
{[%clk 0:01:12.9]} 63. Re2 {[%clk 0:00:22.8]} 63... Ne5 {[%clk 0:01:10.5]} 64.
Rd2 {[%clk 0:00:23.9]} 64... Rc1 {[%clk 0:01:08.7]} 65. Re2 {[%clk 0:00:23.1]}
65... Rc3 {[%clk 0:01:10]} 66. Rd2 {[%clk 0:00:23]} 66... f3 {[%clk 0:01:10.2]}
67. gxf3 {[%clk 0:00:22.7]} 67... Rxf3+ {[%clk 0:01:08.9]} 68. Ke2 {[%clk
0:00:21]} 68... Kf4 {[%clk 0:01:09.4]} 69. Rd4+ {[%clk 0:00:20.2]} 69... Kg5
{[%clk 0:01:07.1]} 70. Re4 {[%clk 0:00:18.1]} 70... Rh3 {[%clk 0:01:03.3]} 71.
Kd2 {[%clk 0:00:16.9]} 71... Rh2+ {[%clk 0:01:03.7]} 72. Re2 {[%clk 0:00:17.8]}
72... Rh6 {[%clk 0:00:54.5]} 73. Kc2 {[%clk 0:00:19.5]} 73... Rh3 {[%clk
0:00:49.6]} 74. Kb2 {[%clk 0:00:20.1]} 74... Rf3 {[%clk 0:00:48.7]} 75. Rh2
{[%clk 0:00:17.3]} 75... Kf4 {[%clk 0:00:47]} 76. Rc2 {[%clk 0:00:18]} 76... Ke3
{[%clk 0:00:44.1]} 77. a3 {[%clk 0:00:18.8]} 77... bxa3+ {[%clk 0:00:44.4]} 78.
Kxa3 {[%clk 0:00:20.7]} 78... Kd4 {[%clk 0:00:45.9]} 79. Kb4 {[%clk 0:00:21.6]}
79... Rg3 {[%clk 0:00:38.7]} 80. Rd2+ {[%clk 0:00:17.3]} 80... Ke3 {[%clk
0:00:39.4]} 81. Ra2 {[%clk 0:00:16.3]} 81... Kd4 {[%clk 0:00:36.2]} 82. Ra6
{[%clk 0:00:15.9]} 82... b5 {[%clk 0:00:36.7]} 83. cxb5 {[%clk 0:00:15]} 83...
Kxd5 {[%clk 0:00:37.1]} 84. b6 {[%clk 0:00:16.1]} 84... Nc6+ {[%clk 0:00:33.9]}
85. Ka3 {[%clk 0:00:14.1]} 85... Rg1 {[%clk 0:00:32.6]} 86. Kb2 {[%clk
0:00:13.2]} 86... Rg2+ {[%clk 0:00:33.7]} 87. Ka3 {[%clk 0:00:13.7]} 87... Rg1
{[%clk 0:00:21.7]} 88. Ra4 {[%clk 0:00:14.8]} 88... Kc5 {[%clk 0:00:21.4]} 89.
b7 {[%clk 0:00:12.6]} 89... Rh1 {[%clk 0:00:21.4]} 90. Be4 {[%clk 0:00:11.5]}
90... Rh8 {[%clk 0:00:21.8]} 91. Bxc6 {[%clk 0:00:12.1]} 91... Kxc6 {[%clk
0:00:23.7]} 92. Ra8 {[%clk 0:00:13.3]} 1-0

[Event "*** Titled Tuesday Blitz"]
[Site "Chess.com"]
[Date "2019.08.06"]
[Round "4"]
[White "Kawhi_Leonard2"]
[Black "Zq1"]
[Result "0-1"]
[WhiteElo "2312"]
[BlackElo "2580"]
[TimeControl "180+2"]
[EndTime "13:44:32 PDT"]
[Termination "Zq1 won by resignation"]

1. e4 {[%clk 0:03:01.9]} 1... c5 {[%clk 0:03:00.5]} 2. Nf3 {[%clk 0:03:01.9]}
2... d6 {[%clk 0:03:01.7]} 3. d4 {[%clk 0:03:02.8]} 3... cxd4 {[%clk 0:03:02.8]}
4. Nxd4 {[%clk 0:03:04.5]} 4... Nf6 {[%clk 0:03:03.9]} 5. Nc3 {[%clk 0:03:05.9]}
5... Nc6 {[%clk 0:03:05.1]} 6. Bg5 {[%clk 0:03:05.2]} 6... g6 {[%clk 0:03:06.2]}
7. Bxf6 {[%clk 0:03:04.7]} 7... exf6 {[%clk 0:03:06.5]} 8. Qd2 {[%clk
0:03:06.6]} 8... Bg7 {[%clk 0:03:07.2]} 9. O-O-O {[%clk 0:02:59.3]} 9... O-O
{[%clk 0:03:07.8]} 10. Ndb5 {[%clk 0:03:00.3]} 10... f5 {[%clk 0:03:04.4]} 11.
Qxd6 {[%clk 0:02:56.6]} 11... Qa5 {[%clk 0:03:02.4]} 12. Bd3 {[%clk 0:02:47.2]}
12... a6 {[%clk 0:03:01.3]} 13. Nc7 {[%clk 0:02:44]} 13... Be5 {[%clk
0:03:01.1]} 14. Qxe5 {[%clk 0:02:36.8]} 14... Nxe5 {[%clk 0:02:50.9]} 15. Nxa8
{[%clk 0:02:38.7]} 15... Be6 {[%clk 0:02:48.2]} 16. exf5 {[%clk 0:02:38.4]}
16... gxf5 {[%clk 0:02:39.5]} 0-1

[Event "*** Titled Tuesday Blitz"]
[Site "Chess.com"]
[Date "2019.08.06"]
[Round "4"]
[White "albi1999"]
[Black "ruvat"]
[Result "1-0"]
[WhiteElo "2477"]
[BlackElo "2349"]
[TimeControl "180+2"]
[EndTime "13:46:19 PDT"]
[Termination "albi1999 won by resignation"]

1. d4 {[%clk 0:03:01.9]} 1... d6 {[%clk 0:02:57.2]} 2. Nf3 {[%clk 0:02:56.6]}
2... g6 {[%clk 0:02:56.9]} 3. g3 {[%clk 0:02:53.1]} 3... Bg7 {[%clk 0:02:57.3]}
4. Bg2 {[%clk 0:02:55]} 4... Nf6 {[%clk 0:02:58]} 5. O-O {[%clk 0:02:55.9]} 5...
O-O {[%clk 0:02:59]} 6. b3 {[%clk 0:02:56.5]} 6... c5 {[%clk 0:02:57.3]} 7. c4
{[%clk 0:02:57]} 7... Nc6 {[%clk 0:02:48.7]} 8. Bb2 {[%clk 0:02:58.1]} 8... cxd4
{[%clk 0:02:48.1]} 9. Nxd4 {[%clk 0:03:00]} 9... Bd7 {[%clk 0:02:48.9]} 10. Nc3
{[%clk 0:03:01]} 10... Qa5 {[%clk 0:02:48.5]} 11. e3 {[%clk 0:03:01.9]} 11...
Rac8 {[%clk 0:02:44.5]} 12. Qd2 {[%clk 0:02:59.8]} 12... Qh5 {[%clk 0:02:39.5]}
13. Rfe1 {[%clk 0:02:59.4]} 13... Nxd4 {[%clk 0:02:34.5]} 14. exd4 {[%clk
0:02:57.9]} 14... Ng4 {[%clk 0:02:01.8]} 15. h3 {[%clk 0:02:56.7]} 15... Nh6
{[%clk 0:02:02.7]} 16. Qe2 {[%clk 0:02:52.5]} 16... Bxd4 {[%clk 0:01:51]} 17.
Qxh5 {[%clk 0:02:51.9]} 17... gxh5 {[%clk 0:01:50.6]} 18. Rxe7 {[%clk
0:02:52.7]} 18... Bc6 {[%clk 0:01:49.4]} 19. Rd1 {[%clk 0:02:52.1]} 19... Bf6
{[%clk 0:01:45.3]} 20. Re2 {[%clk 0:02:50.9]} 20... Nf5 {[%clk 0:01:36.8]} 21.
Nd5 {[%clk 0:02:45.3]} 21... Bxb2 {[%clk 0:01:34.4]} 22. Rxb2 {[%clk 0:02:47.2]}
22... Bxd5 {[%clk 0:01:28.9]} 23. Rxd5 {[%clk 0:02:47.3]} 23... b6 {[%clk
0:01:18.7]} 24. Rxf5 {[%clk 0:02:47.6]} 1-0

[Event "*** Titled Tuesday Blitz"]
[Site "Chess.com"]
[Date "2019.08.06"]
[Round "4"]
[White "Iyael"]
[Black "DACF2905"]
[Result "1-0"]
[WhiteElo "2160"]
[BlackElo "2194"]
[TimeControl "180+2"]
[EndTime "13:46:29 PDT"]
[Termination "Iyael won by resignation"]

1. e4 {[%clk 0:03:01.9]} 1... c5 {[%clk 0:02:59.4]} 2. c3 {[%clk 0:03:02]} 2...
e6 {[%clk 0:02:56.7]} 3. d4 {[%clk 0:03:02.4]} 3... cxd4 {[%clk 0:02:57.9]} 4.
cxd4 {[%clk 0:03:03]} 4... d5 {[%clk 0:02:59.8]} 5. e5 {[%clk 0:03:01]} 5... Nc6
{[%clk 0:03:00.4]} 6. Nf3 {[%clk 0:03:01.9]} 6... Bd7 {[%clk 0:02:59.6]} 7. Nc3
{[%clk 0:03:02.7]} 7... a6 {[%clk 0:03:00.1]} 8. Be2 {[%clk 0:03:03]} 8... Nge7
{[%clk 0:02:57.8]} 9. O-O {[%clk 0:03:00.3]} 9... Nf5 {[%clk 0:02:58.6]} 10. Qd2
{[%clk 0:03:00.9]} 10... Be7 {[%clk 0:02:59.1]} 11. b3 {[%clk 0:03:00.6]} 11...
Rc8 {[%clk 0:02:59.4]} 12. Bb2 {[%clk 0:03:01.3]} 12... b5 {[%clk 0:02:59.9]}
13. Rfd1 {[%clk 0:03:00.5]} 13... f6 {[%clk 0:02:53.9]} 14. Rac1 {[%clk
0:02:52.9]} 14... O-O {[%clk 0:02:52.8]} 15. h3 {[%clk 0:02:43.3]} 15... fxe5
{[%clk 0:02:52.6]} 16. dxe5 {[%clk 0:02:37.8]} 16... Be8 {[%clk 0:02:47.6]} 17.
g4 {[%clk 0:02:34.5]} 17... Nh4 {[%clk 0:02:46.9]} 18. Nxh4 {[%clk 0:02:24.6]}
18... Bxh4 {[%clk 0:02:47.4]} 19. f4 {[%clk 0:02:24.6]} 19... Qb6+ {[%clk
0:02:43.8]} 20. Kh1 {[%clk 0:02:24.2]} 20... Qf2 {[%clk 0:02:37.9]} 21. Rf1
{[%clk 0:02:25.1]} 21... Qg3 {[%clk 0:02:38.6]} 22. Rf3 {[%clk 0:02:25.6]} 22...
d4 {[%clk 0:02:26.3]} 23. Ne4 {[%clk 0:02:24.7]} 23... Qxf3+ {[%clk 0:02:18.6]}
24. Bxf3 {[%clk 0:02:25.1]} 24... Bg6 {[%clk 0:02:16.4]} 25. Nd6 {[%clk
0:02:24.9]} 1-0

[Event "*** Titled Tuesday Blitz"]
[Site "Chess.com"]
[Date "2019.08.06"]
[Round "4"]
[White "riconaipe"]
[Black "maciek_92"]
[Result "1-0"]
[WhiteElo "2453"]
[BlackElo "2747"]
[TimeControl "180+2"]
[EndTime "13:46:56 PDT"]
[Termination "riconaipe won by resignation"]

1. d4 {[%clk 0:03:00.9]} 1... Nf6 {[%clk 0:02:59.6]} 2. c4 {[%clk 0:03:01.6]}
2... e6 {[%clk 0:03:00.9]} 3. Nc3 {[%clk 0:03:02.9]} 3... Bb4 {[%clk 0:03:01.3]}
4. Nf3 {[%clk 0:03:04.4]} 4... O-O {[%clk 0:03:01.2]} 5. Bg5 {[%clk 0:03:04.8]}
5... h6 {[%clk 0:03:01.9]} 6. Bh4 {[%clk 0:03:05.3]} 6... d5 {[%clk 0:03:00.5]}
7. e3 {[%clk 0:03:05.6]} 7... Re8 {[%clk 0:02:58.4]} 8. Rc1 {[%clk 0:03:00.6]}
8... Nbd7 {[%clk 0:02:52.4]} 9. a3 {[%clk 0:02:57.4]} 9... Bxc3+ {[%clk
0:02:49.2]} 10. Rxc3 {[%clk 0:02:58]} 10... c6 {[%clk 0:02:46.6]} 11. Be2 {[%clk
0:02:56.6]} 11... Nf8 {[%clk 0:02:42.1]} 12. O-O {[%clk 0:02:56.5]} 12... Ng6
{[%clk 0:02:43.1]} 13. Bxf6 {[%clk 0:02:52.1]} 13... Qxf6 {[%clk 0:02:45]} 14.
Bd3 {[%clk 0:02:50.6]} 14... Nf8 {[%clk 0:02:29.9]} 15. Ne5 {[%clk 0:02:50.6]}
15... Qe7 {[%clk 0:02:15]} 16. f4 {[%clk 0:02:49.4]} 16... f6 {[%clk 0:02:16.3]}
17. Ng6 {[%clk 0:02:50.2]} 17... Nxg6 {[%clk 0:02:17.7]} 18. Bxg6 {[%clk
0:02:51.6]} 18... Rf8 {[%clk 0:02:18.5]} 19. Qh5 {[%clk 0:02:49.9]} 19... Bd7
{[%clk 0:02:14.9]} 20. g4 {[%clk 0:02:38.6]} 20... e5 {[%clk 0:02:03]} 21. dxe5
{[%clk 0:02:32.1]} 21... fxe5 {[%clk 0:02:03.8]} 22. Qxe5 {[%clk 0:02:27.2]}
22... Qxe5 {[%clk 0:01:58.2]} 23. fxe5 {[%clk 0:02:28.1]} 23... Bxg4 {[%clk
0:01:55.6]} 24. cxd5 {[%clk 0:02:27.1]} 24... cxd5 {[%clk 0:01:56.2]} 25. Rc7
{[%clk 0:02:20.1]} 25... Bh3 {[%clk 0:01:49]} 26. Rff7 {[%clk 0:02:18.4]} 26...
Rxf7 {[%clk 0:01:48.6]} 27. Bxf7+ {[%clk 0:02:19.5]} 27... Kh8 {[%clk
0:01:47.3]} 28. e6 {[%clk 0:02:14.7]} 1-0

[Event "*** Titled Tuesday Blitz"]
[Site "Chess.com"]
[Date "2019.08.06"]
[Round "4"]
[White "Frolik67"]
[Black "Er_is_geen_hoop_meer"]
[Result "1-0"]
[WhiteElo "2625"]
[BlackElo "2353"]
[TimeControl "180+2"]
[EndTime "13:47:18 PDT"]
[Termination "Frolik67 won by checkmate"]

1. e4 {[%clk 0:03:01.9]} 1... c6 {[%clk 0:02:59.5]} 2. d3 {[%clk 0:03:01.9]}
2... Na6 {[%clk 0:02:58.7]} 3. f4 {[%clk 0:03:01.9]} 3... Nc7 {[%clk 0:03:00.6]}
4. Nf3 {[%clk 0:03:03.2]} 4... g6 {[%clk 0:03:02.5]} 5. g3 {[%clk 0:03:04.2]}
5... Bg7 {[%clk 0:03:04.4]} 6. Bg2 {[%clk 0:03:05.7]} 6... d6 {[%clk 0:03:06.3]}
7. O-O {[%clk 0:03:06.9]} 7... f6 {[%clk 0:03:08.2]} 8. c3 {[%clk 0:03:07.6]}
8... Nh6 {[%clk 0:03:10.1]} 9. Nbd2 {[%clk 0:03:08.1]} 9... Nf7 {[%clk 0:03:12]}
10. h3 {[%clk 0:03:09]} 10... O-O {[%clk 0:03:13.3]} 11. Kh2 {[%clk 0:03:10.5]}
11... e5 {[%clk 0:03:14.7]} 12. Rf2 {[%clk 0:03:10.2]} 12... exf4 {[%clk
0:03:13.7]} 13. gxf4 {[%clk 0:03:11.1]} 13... f5 {[%clk 0:03:12.1]} 14. Nf1
{[%clk 0:03:11.6]} 14... fxe4 {[%clk 0:03:13.1]} 15. dxe4 {[%clk 0:03:13.5]}
15... d5 {[%clk 0:03:14.6]} 16. e5 {[%clk 0:03:13.8]} 16... Nh6 {[%clk
0:03:11.1]} 17. Ng3 {[%clk 0:03:14.1]} 17... Nf5 {[%clk 0:03:11.6]} 18. Nxf5
{[%clk 0:03:14.6]} 18... Bxf5 {[%clk 0:03:13.5]} 19. Nd4 {[%clk 0:03:15.5]}
19... Ne6 {[%clk 0:03:14.4]} 20. Be3 {[%clk 0:03:12.6]} 20... Qh4 {[%clk
0:03:14.4]} 21. Qe2 {[%clk 0:02:41.4]} 21... Rae8 {[%clk 0:03:14.5]} 22. Raf1
{[%clk 0:02:38.7]} 22... Ng5 {[%clk 0:03:15.4]} 23. Nxf5 {[%clk 0:02:08.2]}
23... Rxf5 {[%clk 0:03:08.6]} 24. Qg4 {[%clk 0:01:59.7]} 24... Qxg4 {[%clk
0:02:28.7]} 25. hxg4 {[%clk 0:02:01.6]} 25... Rf7 {[%clk 0:02:30.2]} 26. fxg5
{[%clk 0:01:59.1]} 26... Bxe5+ {[%clk 0:02:31.4]} 27. Kh3 {[%clk 0:01:57.7]}
27... Rc7 {[%clk 0:02:23]} 28. Bxa7 {[%clk 0:01:49.3]} 28... c5 {[%clk
0:02:13.7]} 29. Bxd5+ {[%clk 0:01:49.4]} 29... Kh8 {[%clk 0:02:15.2]} 30. Rf7
{[%clk 0:01:45.8]} 30... Rd8 {[%clk 0:02:02.5]} 31. Rf8+ {[%clk 0:01:43.2]}
31... Rxf8 {[%clk 0:01:52.2]} 32. Rxf8+ {[%clk 0:01:45.1]} 32... Kg7 {[%clk
0:01:53.7]} 33. Rg8# {[%clk 0:01:46.3]} 1-0